Workbook

Sheet F_Choque
B2: Modelo de calculo para fuerza de choque
B3: A continuación se presenta un cuadro de resultados basados en una formula básica para el calculo de la fuerza de choque
B5: F: W x G x FF | D5: Definición de variables | G5: W: | H5: Peso del usuario incluidos herramientas, uniforme, materiales y EPP´s, min. 59 kg - máx.. 140kg
G6: G: | H6: Fuerza / aceleración de la gravedad, 9.8 m/s²
G7: FF: | H7: Distancia de caída libre, valores entre 0,6m y 1,8m
B9: kg/m | C9: 60 | D9: 65 | E9: 70 | F9: 75 | G9: 80 | H9: 85 | I9: 90 | J9: 95 | K9: 100 | L9: 105 | M9: 110 | N9: 115 | O9: 120 | P9: 125 | Q9: 130 | R9: 135 | S9: 140
B10: 0.6 | C10: =+C$9*$B10*9.8 -> 352.8 | D10: =+D$9*$B10*9.8 -> 382.2 | E10: 411.6 | F10: 441 | G10: 470.4 | H10: 499.8 | I10: 529.2 | J10: 558.6 | K10: 588 | L10: 617.4 | M10: 646.8 | N10: 676.2 | O10: 705.6 | P10: 735 | Q10: 764.4 | R10: 793.8 | S10: 823.2
B11: 0.65 | C11: =+C$9*$B11*9.8 -> 382.2 | D11: 414.05 | E11: 445.9 | F11: 477.75 | G11: 509.6 | H11: 541.45 | I11: 573.3 | J11: 605.15 | K11: 637 | L11: 668.85 | M11: 700.7 | N11: 732.55 | O11: 764.4 | P11: 796.25 | Q11: 828.1 | R11: 859.95 | S11: 891.8
B12: 0.7 | C12: 411.6 | D12: 445.9 | E12: 480.2 | F12: 514.5 | G12: 548.8 | H12: 583.1 | I12: 617.4 | J12: 651.7 | K12: 686 | L12: 720.3 | M12: 754.6 | N12: 788.9 | O12: 823.2 | P12: 857.5 | Q12: 891.8 | R12: 926.1 | S12: 960.4
B13: 0.75 | C13: 441 | D13: 477.75 | E13: 514.5 | F13: 551.25 | G13: 588 | H13: 624.75 | I13: 661.5 | J13: 698.25 | K13: 735 | L13: 771.75 | M13: 808.5 | N13: 845.25 | O13: 882 | P13: 918.75 | Q13: 955.5 | R13: 992.25 | S13: 1029
B14: 0.8 | C14: 470.4 | D14: 509.6 | E14: 548.8 | F14: 588 | G14: 627.2 | H14: 666.4 | I14: 705.6 | J14: 744.8 | K14: 784 | L14: 823.2 | M14: 862.4 | N14: 901.6 | O14: 940.8 | P14: 980 | Q14: 1019.2 | R14: 1058.4 | S14: 1097.6
B15: 0.85 | C15: 499.8 | D15: 541.45 | E15: 583.1 | F15: 624.75 | G15: 666.4 | H15: 708.05 | I15: 749.7 | J15: 791.35 | K15: 833 | L15: 874.65 | M15: 916.3 | N15: 957.95 | O15: 999.6 | P15: 1041.25 | Q15: 1082.9 | R15: 1124.55 | S15: 1166.2
B16: 0.9 | C16: 529.2 | D16: 573.3 | E16: 617.4 | F16: 661.5 | G16: 705.6 | H16: 749.7 | I16: 793.8 | J16: 837.9 | K16: 882 | L16: 926.1 | M16: 970.2 | N16: 1014.3 | O16: 1058.4 | P16: 1102.5 | Q16: 1146.6 | R16: 1190.7 | S16: 1234.8
B17: 0.95 | C17: 558.6 | D17: 605.15 | E17: 651.7 | F17: 698.25 | G17: 744.8 | H17: 791.35 | I17: 837.9 | J17: 884.45 | K17: 931 | L17: 977.55 | M17: 1024.1 | N17: 1070.65 | O17: 1117.2 | P17: 1163.75 | Q17: 1210.3 | R17: 1256.85 | S17: 1303.4
B18: 1 | C18: 588 | D18: 637 | E18: 686 | F18: 735 | G18: 784 | H18: 833 | I18: 882 | J18: 931 | K18: 980 | L18: 1029 | M18: 1078 | N18: 1127 | O18: 1176 | P18: 1225 | Q18: 1274 | R18: 1323 | S18: 1372
B19: 1.05 | C19: 617.4 | D19: 668.85 | E19: 720.3 | F19: 771.75 | G19: 823.2 | H19: 874.65 | I19: 926.1 | J19: 977.55 | K19: 1029 | L19: 1080.45 | M19: 1131.9 | N19: 1183.35 | O19: 1234.8 | P19: 1286.25 | Q19: 1337.7 | R19: 1389.15 | S19: 1440.6
B20: 1.1 | C20: 646.8 | D20: 700.7 | E20: 754.6 | F20: 808.5 | G20: 862.4 | H20: 916.3 | I20: 970.2 | J20: 1024.1 | K20: 1078 | L20: 1131.9 | M20: 1185.8 | N20: 1239.7 | O20: 1293.6 | P20: 1347.5 | Q20: 1401.4 | R20: 1455.3 | S20: 1509.2
B21: 1.15 | C21: 676.2 | D21: 732.55 | E21: 788.9 | F21: 845.25 | G21: 901.6 | H21: 957.95 | I21: 1014.3 | J21: 1070.65 | K21: 1127 | L21: 1183.35 | M21: 1239.7 | N21: 1296.05 | O21: 1352.4 | P21: 1408.75 | Q21: 1465.1 | R21: 1521.45 | S21: 1577.8
B22: 1.2 | C22: 705.6 | D22: 764.4 | E22: 823.2 | F22: 882 | G22: 940.8 | H22: 999.6 | I22: 1058.4 | J22: 1117.2 | K22: 1176 | L22: 1234.8 | M22: 1293.6 | N22: 1352.4 | O22: 1411.2 | P22: 1470 | Q22: 1528.8 | R22: 1587.6 | S22: 1646.4
B23: 1.25 | C23: 735 | D23: 796.25 | E23: 857.5 | F23: 918.75 | G23: 980 | H23: 1041.25 | I23: 1102.5 | J23: 1163.75 | K23: 1225 | L23: 1286.25 | M23: 1347.5 | N23: 1408.75 | O23: 1470 | P23: 1531.25 | Q23: 1592.5 | R23: 1653.75 | S23: 1715
B24: 1.3 | C24: 764.4 | D24: 828.1 | E24: 891.8 | F24: 955.5 | G24: 1019.2 | H24: 1082.9 | I24: 1146.6 | J24: 1210.3 | K24: 1274 | L24: 1337.7 | M24: 1401.4 | N24: 1465.1 | O24: 1528.8 | P24: 1592.5 | Q24: 1656.2 | R24: 1719.9 | S24: 1783.6
B25: 1.35 | C25: 793.8 | D25: 859.95 | E25: 926.1 | F25: 992.25 | G25: 1058.4 | H25: 1124.55 | I25: 1190.7 | J25: 1256.85 | K25: 1323 | L25: 1389.15 | M25: 1455.3 | N25: 1521.45 | O25: 1587.6 | P25: 1653.75 | Q25: 1719.9 | R25: 1786.05 | S25: =+S$9*$B25*9.8 -> 1852.2
B26: 1.4 | C26: 823.2 | D26: 891.8 | E26: 960.4 | F26: 1029 | G26: 1097.6 | H26: 1166.2 | I26: 1234.8 | J26: 1303.4 | K26: 1372 | L26: 1440.6 | M26: 1509.2 | N26: 1577.8 | O26: 1646.4 | P26: 1715 | Q26: 1783.6 | R26: 1852.2 | S26: 1920.8
B27: 1.45 | C27: =+C$9*$B27*9.8 -> 852.6 | D27: 923.65 | E27: 994.7 | F27: 1065.75 | G27: 1136.8 | H27: 1207.85 | I27: 1278.9 | J27: 1349.95 | K27: 1421 | L27: 1492.05 | M27: 1563.1 | N27: 1634.15 | O27: 1705.2 | P27: 1776.25 | Q27: 1847.3 | R27: 1918.35 | S27: 1989.4
B28: 1.5 | C28: 882 | D28: 955.5 | E28: 1029 | F28: 1102.5 | G28: 1176 | H28: 1249.5 | I28: 1323 | J28: 1396.5 | K28: 1470 | L28: 1543.5 | M28: 1617 | N28: 1690.5 | O28: 1764 | P28: 1837.5 | Q28: 1911 | R28: 1984.5 | S28: 2058
B29: 1.55 | C29: 911.4 | D29: 987.35 | E29: 1063.3 | F29: 1139.25 | G29: 1215.2 | H29: 1291.15 | I29: 1367.1 | J29: 1443.05 | K29: 1519 | L29: 1594.95 | M29: 1670.9 | N29: 1746.85 | O29: 1822.8 | P29: 1898.75 | Q29: 1974.7 | R29: 2050.65 | S29: 2126.6
B30: 1.6 | C30: 940.8 | D30: 1019.2 | E30: 1097.6 | F30: 1176 | G30: 1254.4 | H30: 1332.8 | I30: 1411.2 | J30: 1489.6 | K30: 1568 | L30: 1646.4 | M30: 1724.8 | N30: 1803.2 | O30: 1881.6 | P30: 1960 | Q30: 2038.4 | R30: 2116.8 | S30: 2195.2
B31: 1.65 | C31: 970.2 | D31: 1051.05 | E31: 1131.9 | F31: 1212.75 | G31: 1293.6 | H31: 1374.45 | I31: 1455.3 | J31: 1536.15 | K31: 1617 | L31: 1697.85 | M31: 1778.7 | N31: 1859.55 | O31: 1940.4 | P31: 2021.25 | Q31: 2102.1 | R31: 2182.95 | S31: 2263.8
B32: 1.7 | C32: 999.6 | D32: 1082.9 | E32: 1166.2 | F32: 1249.5 | G32: 1332.8 | H32: 1416.1 | I32: 1499.4 | J32: 1582.7 | K32: 1666 | L32: 1749.3 | M32: 1832.6 | N32: 1915.9 | O32: 1999.2 | P32: 2082.5 | Q32: 2165.8 | R32: 2249.1 | S32: 2332.4
B33: 1.75 | C33: 1029 | D33: 1114.75 | E33: 1200.5 | F33: 1286.25 | G33: 1372 | H33: 1457.75 | I33: 1543.5 | J33: 1629.25 | K33: 1715 | L33: 1800.75 | M33: 1886.5 | N33: 1972.25 | O33: 2058 | P33: 2143.75 | Q33: 2229.5 | R33: 2315.25 | S33: 2401
B34: 1.8 | C34: 1058.4 | D34: 1146.6 | E34: 1234.8 | F34: 1323 | G34: 1411.2 | H34: 1499.4 | I34: 1587.6 | J34: 1675.8 | K34: 1764 | L34: 1852.2 | M34: 1940.4 | N34: 2028.6 | O34: 2116.8 | P34: 2205 | Q34: 2293.2 | R34: 2381.4 | S34: 2469.6

Sheet R_Claridad
B2: Calculo de requerimiento de claridad
B3: * Diligencie las casillas de color amarillo
B4: * Los resultados de la grafica son de la primer fila | I4: =G10&": "&G11 -> T_Ly: 12ft
B5: Datos fijos | I5: =F10&": "&F11&" m" -> CA: 5,16 m | K5: Variables | L5: Variables
B6: Ly | C6: Xpea | D6: Hi | E6: CM | F6: Xw | I6: =D6&": "&D7&" m" -> Hi: 1,3 m | K6: Ly | L6: Longitud de la eslinga máx. 1,8m
B7: 1.8 | C7: 1,2 | D7: 1.3 | E7: 0.3 | F7: 0.46 | I7: =F6&": "&F7&" m" -> Xw: 0,46 m | K7: Xpea | L7: Distancia de desaceleración 6ft - 1,2m y 12ft -1,5m
I8: =C6&": "&C7&" m" -> Xpea: 1,2 m | K8: Xw | L8: Estiramiento del arnés máx. 0,457 m
B9: Resultados (m) | I9: =E10&": "&E11&" m" -> CP: 3,86 m | K9: Hi | L9: Altura de pies a argolla dorsal
B10: Ha | C10: HDA | D10: FF | E10: CP | F10: CA | G10: T_Ly | I10: =B6&"; "&B7&" m" -> Ly; 1,8 m | K10: CM | L10: Margen de seguridad
B11: 1.2 | C11: =(B11-$D$7)*-1 -> 0.1 | D11: =+$B$7+((B11-$D$7)*-1) -> 1.9 | E11: =+($B$7+C11)+$C$7+$F$7+$E$7 -> 3.86 | F11: =($B$7+C11)+$C$7+$F$7+$E$7+$D$7 -> 5.16 | G11: =IF(D11>1.83,"12ft","6ft") -> 12ft | K11: Ha | L11: Distancia de plataforma a punto de anclaje
C12: =(B12-$D$7)*-1 -> 1.3 | D12: =+$B$7+((B12-$D$7)*-1) -> 3.1 | E12: =+($B$7+C12)+$C$7+$F$7+$E$7 -> 5.06 | F12: =($B$7+C12)+$C$7+$F$7+$E$7+$D$7 -> 6.36 | G12: =IF(D12>1.83,"12ft","6ft") -> 12ft | K12: HDA | L12: Distancia vertical de argolla dorsal a punto de anclaje
C13: =(B13-$D$7)*-1 -> 1.3 | D13: =+$B$7+((B13-$D$7)*-1) -> 3.1 | E13: =+($B$7+C13)+$C$7+$F$7+$E$7 -> 5.06 | F13: =($B$7+C13)+$C$7+$F$7+$E$7+$D$7 -> 6.36 | G13: 12ft | I13: =E6&": "&E7&" m" -> CM: 0,3 m | K13: FF | L13: Distancia de caída libre
C14: =(B14-$D$7)*-1 -> 1.3 | D14: =+$B$7+((B14-$D$7)*-1) -> 3.1 | E14: =+($B$7+C14)+$C$7+$F$7+$E$7 -> 5.06 | F14: =($B$7+C14)+$C$7+$F$7+$E$7+$D$7 -> 6.36 | G14: 12ft | K14: CP | L14: Requerimiento de claridad a plataforma
K15: CA | L15: Requerimiento de claridad al anclaje
B16: Área del cilindro (horizontal) | K16: R | L16: Radio del cilindro
B17: HHDA | C17: Hi | D17: R min | E17: Área | K17: HHDA | L17: Distancia horizontal argolla dorsal a punto de anclaje
B18: 1 | C18: =+$D$7 -> 1.3 | D18: =IF(B18>C18,B18,C18)+0.5 -> 1.8 | E18: =+IF(B18>C18,PI()*B18*B18,PI()*C18*C18) -> 5.309291585
B19: 1.5 | C19: =+$D$7 -> 1.3 | D19: =IF(B19>C19,B19,C19)+0.5 -> 2 | E19: =+IF(B19>C19,PI()*B19*B19,PI()*C19*C19) -> 7.068583471 | I19: =D17&": "&D18&" m" -> R min: 1,8 m | K19: Formulas
B20: 2 | C20: 1.3 | D20: =IF(B20>C20,B20,C20)+0.5 -> 2.5 | E20: =+IF(B20>C20,PI()*B20*B20,PI()*C20*C20) -> 12.56637061 | K20: CP= FF+DD+Xw+CM
B21: 2.5 | C21: 1.3 | D21: 3 | E21: 19.63495408 | K21: CA= FF+DD+Hf+CM
B22: 3 | C22: 1.3 | D22: 3.5 | E22: 28.27433388 | K22: FF=Ly+HDA
K23: DD=Xpea+Xw
K24: HF=Hi+Xw
K25: HDA=(Ha-Hi)*(-1)

Sheet Informe
A1: =XFD1 -> eusse2024 | XFD1: eusse2024
B2: Datos del inspector
B3: CC | C3: Cedula Inspector | E3: Instrucciones | H3: Actualizar | I3: Calculo requerimiento de claridad
B4: Nombre | C4: Nombre inspector | E4: 1. Registre sus datos como inspector
B5: Certificado Eusse | C5: # certificado inspector | E5: 2. Para hacer un registro nuevo de clic sobre "Nuevo"
B6: Fecha vigencia | C6: Dos años despues del curs | E6: 3. Para actualizar las inspecciones realizadas de clic sobre "Actualizar" | H6: Nuevo | I6: Fuerza de choque
B7: Teléfono | C7: Teléfono del inspector | E7: 4. Para ver una inspección, seleccione el de su interés y de clic sobre "Ver"
B8: Correo | C8: Correo Inspector
B9: Listado de registros de inspección | H9: Ver
B10: Consecutivo | C10: Fecha | D10: Serial | E10: Referencia | F10: Resultado
B11: 2024-2-987654321 | C11: =OFFSET(BD_INS!$C$1,MATCH(Tabla10[[#This Row],[Consecutivo]],BD_INS!$B:$B,0)-1,0) -> 25/07/24 | D11: =OFFSET(BD_INS!$P$1,MATCH(Tabla10[[#This Row],[Consecutivo]],BD_INS!$B:$B,0)-1,0) -> PT.2024.12345678 | E11: =OFFSET(BD_INS!$O$1,MATCH(Tabla10[[#This Row],[Consecutivo]],BD_INS!$B:$B,0)-1,0) -> A 001 E | F11: =OFFSET(BD_INS!$H$1,MATCH(Tabla10[[#This Row],[Consecutivo]],BD_INS!$B:$B,0)-1,0) -> No Conforme

Sheet R_foto
B2: Registro fotografico | G2: Fecha | H2: =TODAY() -> 2025-05-20 | O2: Borrar
B4: Referencia | C4: Cantidad | D4: Trazabilidad | F4: Referencia | G4: Cantidad | H4: Trazabilidad | J4: Referencia | K4: Cantidad | L4: Trazabilidad
B23: Referencia | C23: Cantidad | D23: Trazabilidad | F23: Referencia | G23: Cantidad | H23: Trazabilidad | J23: Referencia | K23: Cantidad | L23: Trazabilidad
B42: Referencia | C42: Cantidad | D42: Trazabilidad | F42: Referencia | G42: Cantidad | H42: Trazabilidad | J42: Referencia | K42: Cantidad | L42: Trazabilidad
B62: Referencia | C62: Cantidad | D62: Trazabilidad | F62: Referencia | G62: Cantidad | H62: Trazabilidad | J62: Referencia | K62: Cantidad | L62: Trazabilidad

Sheet BD_INS
CF1: 2024-2-2024-1234
B2: Valor referencia | C2: 2024-2-987654321
B3: Prueba existencia | C3: =+IFERROR(MATCH(C2,B:B,0),0) -> 11
B4: #registros | C4: =COUNTA(Tabla7[ID]) -> 1
B10: ID | C10: Fecha | D10: CC Inspector | E10: Hallazgos | F10: Recomendaciones | G10: FT | H10: Resultado general | I10: Propietario NIT/CC: | J10: Propietario Nombre: | K10: Propietario Teléfono: | L10: Propietario Correo: | M10: Propietario Dirección: | N10: Propietario Ciudad: | O10: Referencia | P10: Serial | Q10: Fecha fabricacion | R10: Compra fecha | S10: Compra registro | T10: HV fecha | U10: HV registro | V10: FT Fecha | W10: FT Registro | X10: Manual fecha | Y10: Manual registro | Z10: Insp fecha | AA10: Insp registro | AB10: Mante fecha | AC10: mante registr | AD10: Columna25 | AE10: Columna26 | AF10: Columna27 | AG10: Columna28 | AH10: Columna29 | AI10: Columna30 | AJ10: Columna31 | AK10: Columna32 | AL10: Columna33 | AM10: Columna34 | AN10: Columna35 | AO10: Columna36 | AP10: Columna37 | AQ10: Columna38 | AR10: Columna39 | AS10: Columna40 | AT10: Columna41 | AU10: Columna42 | AV10: Columna43 | AW10: Columna44 | AX10: Columna45 | AY10: Columna46 | AZ10: Columna47 | BA10: Columna48 | BB10: Columna49 | BC10: Columna50 | BD10: Columna51 | BE10: Columna52 | BF10: Columna53 | BG10: Columna54 | BH10: Columna55 | BI10: Columna56 | BJ10: Columna57 | BK10: Columna58 | BL10: Columna59 | BM10: Columna60 | BN10: Columna61 | BO10: Columna62 | BP10: Columna63 | BQ10: Columna64 | BR10: Columna65 | BS10: Columna66 | BT10: Columna67 | BU10: Columna68 | BV10: Columna69 | BW10: Columna70 | BX10: Columna71 | BY10: Columna72 | BZ10: Columna73 | CA10: Columna74 | CB10: Columna75 | CC10: Columna76 | CD10: Columna77 | CE10: Columna78 | CF10: Columna79
B11: 2024-2-987654321 | C11: 25/07/24 | D11: 1234567890 | E11: Describir los hallazgos evidencias en el producto | F11: Presente las recoemndaciones de la inspección | G11: Si | H11: No Conforme | I11: 4567890123 | J11: Eusse Seguridad | K11: 6044441220 | L11: publicidad@eusseseguridad.com | M11: Autopista Medellín - Bogotá, kilometro 28 | N11: Guarne - Antioquia | O11: A 001 E | P11: PT.2024.12345678 | Q11: 45292 | R11: 2024-01-01 | S11: FV 01234 | T11: 2024-01-01 | U11: HV 01234 | V11: 2024-01-01 | W11: A 001 E | X11: 2024-01-01 | Y11: A 001 E | Z11: 2024-01-01 | AA11: RI 1328 | AB11: 2024-01-01 | AC11: MP 7654 | AD11: Si | AE11: No | AF11: N/A | AG11: Si | AH11: No | AI11: N/A | AJ11: Si | AK11: No | AL11: N/A | AM11: No | AN11: N/A | AO11: Si | AP11: No | AQ11: N/A | AR11: Si | AS11: No | AT11: N/A | AU11: Si | AV11: No | AW11: N/A | AX11: No | AY11: N/A | AZ11: Si | BA11: No | BB11: N/A | BC11: Si | BD11: No | BE11: N/A | BF11: Si | BG11: No | BH11: N/A | BI11: No | BJ11: N/A | BK11: N/A | BL11: Si | BM11: No | BN11: N/A | BO11: N/A | BP11: Si | BQ11: No | BR11: N/A | BS11: N/A | BT11: Si | BU11: No | BV11: N/A | BW11: N/A | BX11: Si | BY11: No | BZ11: N/A | CA11: Si | CB11: No | CC11: N/A | CD11: Si | CE11: No

Sheet Ins
A1: =Informe!A1 -> eusse2024
B2: Reporte de Inspección | G2: www.eusseseguridad.com info@eusseseguridad.com 604 444 1220 km 28 autopista Medellín - Bogotá, Guarne Antioquia
B3: Consecutivo: | C3: 2024-2-987654321 | E3: Fecha: | F3: 25/07/24
B4: Datos generales
B6: Inspector | F6: Propietario | J6: Producto
B7: CC: | C7: =IF(Informe!C3=0,"",Informe!C3) -> Cedula Inspector | F7: NIT/CC: | G7: 4567890123 | J7: Referencia: | K7: A 001 E
B8: Nombre: | C8: =IF(Informe!C4=0,"",Informe!C4) -> Nombre inspector | F8: Nombre: | G8: Eusse Seguridad | J8: Serial: | K8: PT.2024.12345678
B9: Certificado Eusse: | C9: =IF(Informe!C5=0,"",Informe!C5) -> # certificado inspector | F9: Teléfono: | G9: 6044441220 | J9: Fecha fabricación: | K9: 2024-01-01
B10: Fecha vigencia: | C10: =IF(Informe!C6=0,"",Informe!C6) -> Dos años despues del curs | F10: Correo: | G10: publicidad@eusseseguridad.com | J10: Norma técnica: | K10: =IFERROR(OFFSET(BD_Pro!$E$1,MATCH(Ins!K7,BD_Pro!B:B,0)-1,0),"") -> ANSI/ASSP Z359.11
B11: Teléfono: | C11: =IF(Informe!C7=0,"",Informe!C7) -> Teléfono del inspector | F11: Dirección: | G11: Autopista Medellín - Bogotá, kilometro 28 | J11: Descripción: | K11: =IFERROR(OFFSET(BD_Pro!$C$1,MATCH(Ins!K7,BD_Pro!B:B,0)-1,0),"") -> Arnés de cuerpo entero con cinco puntos de anclaje,faja de protección lumbar, con portaherramientas
B12: Correo: | C12: =IF(Informe!C8=0,"",Informe!C8) -> Correo Inspector | F12: Ciudad: | G12: Guarne - Antioquia
B14: Revisión documental (registre la información de la ultima evidencia)
B16: Evidencia compra | D16: Hoja de vida | F16: Ficha técnica | H16: Manual del usuario | J16: Ultima inspección | L16: Ultimo mantenimiento
B17: 2024-01-01 | D17: 2024-01-01 | F17: 2024-01-01 | H17: 2024-01-01 | J17: 2024-01-01 | L17: 2024-01-01
B18: FV 01234 | D18: HV 01234 | F18: A 001 E | H18: A 001 E | J18: RI 1328 | L18: MP 7654
B20: Inspección de aspectos generales
B22: General | E22: Estado | F22: Inspección textiles | I22: Estado | J22: Inspección metálicos | M22: Estado | O22: General | Q22: Textiles | S22: Metálicos
B23: La etiqueta presenta la información legible y contiene serial, referencia, fecha y certificación | E23: Si | F23: Las cintas, cuerdas e hilo de costura, son homogéneos en su longitud | I23: Si | J23: Los componentes metálicos presentan deformación, abolladuras, grietas y demás defectos similares | M23: No | O23: Si | P23: =IF(E23="N/A",0,IF(E23=$O23,0,1)) -> 0 | Q23: Si | R23: =IF(I23="N/A",0,IF(I23=$Q23,0,1)) -> 0 | S23: No | T23: =IF(M23="N/A",0,IF(M23=$S23,0,1)) -> 0
B24: El producto presenta alteraciones, modificaciones, reparaciones y/o variaciones | E24: No | F24: Las costuras están completas, hilo de color contraste, puntadas de seguridad e integra | I24: Si | J24: El elemento metálico presenta cierre y seguro automático | M24: Si | O24: No | P24: 0 | Q24: Si | R24: 0 | S24: Si | T24: 0
B25: El producto presenta cambios no autorizadas por el fabricante | E25: No | F25: Las cintas y/o cuerdas, presentan cortes que afecten la estructura | I25: No | J25: El componente metálico presenta oxidación grado III (libera cristales al friccionar) | M25: No | O25: No | P25: 0 | Q25: No | R25: 0 | S25: No | T25: 0
B26: El producto presenta signos de mal uso, uso indebido y/o desgastes diferentes al correcto uso | E26: No | F26: Las cintas y/o cuerdas presentan deshilaches o desgastes que puedan afectar su comportamiento | I26: No | J26: El componente metálico esta lubricado y sus partes funcionan correctamente | M26: Si | O26: No | P26: 0 | Q26: No | R26: 0 | S26: Si | T26: 0
B27: El producto presenta signos de caída libre, indicador activado o evidencia de caída libre | E27: No | F27: La funda de las cuerdas esta completa sin permitir ver el alma dentro de ella | I27: Si | J27: Las compuertas del componente metálico funcionan correctamente evitando la liberación involuntaria | M27: Si | O27: No | P27: 0 | Q27: Si | R27: 0 | S27: Si | T27: 0
B28: Todos sus componentes están completos y funcionan correctamente | E28: Si | F28: En la cuerda al hacer el ensayo de doblez se identifican fallas o cierre completo | I28: No | J28: El producto presenta alteraciones, modificaciones, reparaciones y/o variaciones | M28: No | O28: Si | P28: 0 | Q28: No | R28: 0 | S28: No | T28: 0
B29: El producto presenta objetos extraños, que afecten la funcionalidad del producto | E29: No | F29: El ancho de las cintas que soportan el peso del usuario presentan un ancho mínimo de 44mm | I29: Si | J29: El producto presenta cambios no autorizadas por el fabricante | M29: No | O29: No | P29: 0 | Q29: Si | R29: 0 | S29: No | T29: 0
B30: Las partes plásticas están completas y sin signos de quiebre o similares | E30: Si | F30: El diámetro de las cuerdas es igual a la descrita en el etiquetado | I30: Si | J30: El producto presenta signos de mal uso, uso indebido y/o desgastes diferentes al correcto uso | M30: No | O30: Si | P30: 0 | Q30: Si | R30: 0 | S30: No | T30: 0
B31: Las piezas para portar equipos y demás accesorios están completas y funcionales | E31: Si | F31: El producto presenta quemaduras por fuentes de calor | I31: No | J31: El componentes metálico presenta marcaciones y/o afectaciones a su estructura | M31: No | O31: Si | P31: 0 | Q31: No | R31: 0 | S31: No | T31: 0
B32: Los indicadores de uso, impacto, degaste y demás están completos y funcionales | E32: Si | F32: Las cintas y/o cuerdas presenta decoloración atribuible a quemadura por sustancias químicas | I32: No | J32: El elemento metálico requiere de dos movimientos consecutivos y deliberados para su apertura | M32: Si | O32: Si | P32: 0 | Q32: No | R32: 0 | S32: Si | T32: 0
B33: El producto presenta desgaste normal acorde al tiempo de uso, tarea asignada y similares | E33: Si | F33: Los componentes textiles presentan zonas que al doblar, las fibras se quiebran | I33: No | J33: Los componentes metálicos son del material identificado en el etiquetado | M33: Si | O33: Si | P33: 0 | Q33: No | R33: 0 | S33: Si | T33: 0
P34: =COUNTIF(P23:P33,1) -> 0 | R34: =COUNTIF(R23:R33,1) -> 0 | T34: =COUNTIF(T23:T33,1) -> 0
B35: Inspección requisitos de diseño | I35: Producto conforme a ficha técnica en forma, longitud, talla y demás similares | M35: Si
B37: ANSI/ASSP Z359.3 eslinga | F37: ANSI/ASSP Z359.11 arnés | J37: ANSI/ASSP Z359.13 absorbedor
B38: Ajustador de longitud funciona correctamente | E38: Si | F38: Argolla dorsal incluida en el equipo | I38: Si | J38: Clasificación 6ft, para caída libre hasta 1,8m | M38: Si | O38: Si | P38: =IF(E38="N/A",0,IF(E38=$O38,0,1)) -> 0 | Q38: Si | R38: =IF(I38="N/A",0,IF(I38=$Q38,0,1)) -> 0 | S38: Si | T38: =IF(M38="N/A",0,IF(M38=$S38,0,1)) -> 0
B39: Elemento que evita liberación completa de ajustador | E39: Si | F39: Correa cruzadas en la parte dorsal | I39: Si | J39: Clasificación 12ft, para caída libre hasta 3,6m | M39: Si | O39: Si | P39: 0 | Q39: Si | R39: 0 | S39: Si | T39: =IF(M39="N/A",0,IF(M39=$S39,0,1)) -> 0
B40: Contiene Guardacabo / protector metal - textil | E40: Si | F40: Correa sub-pélvica, excepto para forma "Y" | I40: Si | J40: Plástico protector en buen estado | M40: Si | O40: Si | P40: 0 | Q40: Si | R40: 0 | S40: Si | T40: =IF(M40="N/A",0,IF(M40=$S40,0,1)) -> 0
B41: Longitud de la eslinga especificada en la etiqueta | E41: Si | F41: Parqueadero de eslingas (al menos uno funcional) | I41: Si | J41: Componente de absorción activado | M41: No | O41: Si | P41: 0 | Q41: Si | R41: 0 | S41: No | T41: =IF(M41="N/A",0,IF(M41=$S41,0,1)) -> 0
B42: ANSI/ASSP Z359.15 línea de vida | F42: ANSI/ASSP Z359.18 Anclaje | J42: UNE EN 355
B43: Diámetro mayor a 11mm | E43: Si | F43: Tipo A, portátiles | I43: Si | J43: Plástico protector en buen estado | M43: Si | O43: Si | P43: =IF(E43="N/A",0,IF(E43=$O43,0,1)) -> 0 | Q43: Si | R43: 0 | S43: Si | T43: =IF(M43="N/A",0,IF(M43=$S43,0,1)) -> 0
B44: En la longitud de la línea están presente nudos | E44: No | F44: Tipo T, fijos estructura (metálica, concreto, etc.) | I44: Si | J44: Componente de absorción activado | M44: No | O44: No | P44: 0 | Q44: Si | R44: 0 | S44: No | T44: =IF(M44="N/A",0,IF(M44=$S44,0,1)) -> 0
B45: El alma permite ver la funda | E45: No | F45: Tipo D, con absorbedor de impacto | I45: Si | J45: Longitud de la eslinga especificada en la etiqueta | M45: Si | O45: No | P45: 0 | Q45: Si | R45: 0 | S45: Si | T45: =IF(M45="N/A",0,IF(M45=$S45,0,1)) -> 0
P46: =COUNTIF(P37:P45,1) -> 0 | R46: =COUNTIF(R38:R45,1) -> 0 | T46: =COUNTIF(T38:T45,1) -> 0
B47: Consolidación de la información
B49: Resultado de la inspección | F49: Hallazgos | J49: Recomendaciones
B50: Aspectos generales del producto | E50: =IF(P34=0,"Conforme","No Conforme") -> Conforme | F50: Describir los hallazgos evidencias en el producto | J50: Presente las recoemndaciones de la inspección
B51: Aspectos generales de textiles | E51: =IF(R34=0,"Conforme","No Conforme") -> Conforme
B52: Aspectos generales de metálicos | E52: =IF(T34=0,"Conforme","No Conforme") -> Conforme
B53: Comparación producto vs ficha técnica | E53: =IF(M35="Si","Conforme","No Conforme") -> Conforme
B54: ="Cumplimiento requisitos "&K10 -> Cumplimiento requisitos ANSI/ASSP Z359.11 | E54: =IF(SUM(P46:T46)=0,"Conforme","No Conforme") -> Conforme
B55: ="Concepto general del producto "&K7 -> Concepto general del producto A 001 E | E55: =IF(COUNTIF(E50:E54,"No conforme")>0,"No Conforme","Conforme") -> Conforme
B56: * en caso que el "Concepto general del producto" sea "No Conforme" adjuntar a este informe las imágenes que lo demuestren
C63: Firma del inspector | I63: Firma del representante del propietario
C64: Nombre | D64: =C8 -> Nombre inspector | I64: Nombre
C65: CC | D65: =C7 -> Cedula Inspector | I65: CC
C67: *Para consultar la vigencia del certificado del inspector de click

Sheet BD_Pro
B10: Prod_ID | C10: Prod_Nombre | D10: ID_norma | E10: Referencial | F10: ID_Familia | G10: Familia | H10: Prod_Tipo | I10: Prod_Grupo | J10: Prod_Zona
B11: A 001 E | C11: Arnés de cuerpo entero con cinco puntos de anclaje,faja de protección lumbar, con portaherramientas | D11: 3 | E11: ANSI/ASSP Z359.11 | F11: 15 | G11: Frontal + lateral | H11: PT | I11: Arnés de cuerpo entero | J11: EPP
B12: A 001 E D | C12: Arnés de cuerpo entero con cinco puntos de anclaje,faja de protección lumbar, con portaherramientas, Dieléctrico | D12: 3 | E12: ANSI/ASSP Z359.11 | F12: 15 | G12: Frontal + lateral | H12: PT | I12: Arnés de cuerpo entero | J12: EPP
B13: A 001 E EC | C13: Arnés de cuerpo entero, espacios confinados, 7 argollas, en forma de "H", con faja lumbar | D13: 3 | E13: ANSI/ASSP Z359.11 | F13: 15 | G13: Frontal + lateral | H13: PT | I13: Arnés de cuerpo entero | J13: EPP
B14: A 001 E PP | C14: Arnés de cuerpo entero con cinco puntos de anclaje,faja de protección lumbar, con portaherramientas, Con Argollas recubiertas para evitar la oxidación. | D14: 3 | E14: ANSI/ASSP Z359.11 | F14: 15 | G14: Frontal + lateral | H14: PT | I14: Arnés de cuerpo entero | J14: EPP
B15: A 001 E PP EC | C15: Arnés de cuerpo entero, espacios confinados, 7 argollas con protección a la oxidación, en forma de "H", con faja lumbar | D15: 3 | E15: ANSI/ASSP Z359.11 | F15: 17 | G15: Frontal + lateral + hombros | H15: PT | I15: Arnés de cuerpo entero | J15: EPP
B16: A 001 ED EC | C16: Arnés de cuerpo entero, espacios confinados,7 argollas con protección dieléctrica, en forma de "H", con faja lumbar | D16: 3 | E16: ANSI/ASSP Z359.11 | F16: 17 | G16: Frontal + lateral + hombros | H16: PT | I16: Arnés de cuerpo entero | J16: EPP
B17: A 004 | C17: Arnés de cuerpo entero con cuatro puntos de anclaje | D17: 3 | E17: ANSI/ASSP Z359.11 | F17: 15 | G17: Frontal + lateral | H17: PT | I17: Arnés de cuerpo entero | J17: EPP
B18: A 004 D | C18: Arnés de cuerpo entero con cuatro puntos de anclaje | D18: 3 | E18: ANSI/ASSP Z359.11 | F18: 15 | G18: Frontal + lateral | H18: PT | I18: Arnés de cuerpo entero | J18: EPP
B19: A 004 D EC | C19: Arnés de cuerpo entero, espacios confinados, 6 argollas con protección dieléctrica, en forma de "X", con faja lumbar | D19: 3 | E19: ANSI/ASSP Z359.11 | F19: 17 | G19: Frontal + lateral + hombros | H19: PT | I19: Arnés de cuerpo entero | J19: EPP
B20: A 004 EC | C20: Arnés de cuerpo entero, espacios confinados, 6 argollas, en forma de "X", con faja lumbar | D20: 3 | E20: ANSI/ASSP Z359.11 | F20: 15 | G20: Frontal + lateral | H20: PT | I20: Arnés de cuerpo entero | J20: EPP
B21: A 004 PP | C21: Arnés de cuerpo entero con cuatro puntos de anclaje Con Argollas recubiertas para evitar la oxidación. | D21: 3 | E21: ANSI/ASSP Z359.11 | F21: 15 | G21: Frontal + lateral | H21: PT | I21: Arnés de cuerpo entero | J21: EPP
B22: A 004 PP EC | C22: Arnés de cuerpo entero, espacios confinados, 6 argollas con protección a la oxidación, en forma de "X", con faja lumbar | D22: 3 | E22: ANSI/ASSP Z359.11 | F22: 17 | G22: Frontal + lateral + hombros | H22: PT | I22: Arnés de cuerpo entero | J22: EPP
B23: A 004 SF | C23: Arnés de cuerpo entero con cuatro puntos de anclaje | D23: 3 | E23: ANSI/ASSP Z359.11 | F23: 15 | G23: Frontal + lateral | H23: PT | I23: Arnés de cuerpo entero | J23: EPP
B24: A 004 SF D | C24: Arnés de cuerpo entero con cuatro puntos de anclaje, Dieléctrico | D24: 3 | E24: ANSI/ASSP Z359.11 | F24: 15 | G24: Frontal + lateral | H24: PT | I24: Arnés de cuerpo entero | J24: EPP
B25: A 004 SF D EC | C25: Arnés de cuerpo entero, espacios confinados,6 argollas con protección dieléctrica, en forma de "X" | D25: 3 | E25: ANSI/ASSP Z359.11 | F25: 17 | G25: Frontal + lateral + hombros | H25: PT | I25: Arnés de cuerpo entero | J25: EPP
B26: A 004 SF EC | C26: Arnés de cuerpo entero, espacios confinados, 6 argollas, en forma de "X" | D26: 3 | E26: ANSI/ASSP Z359.11 | F26: 15 | G26: Frontal + lateral | H26: PT | I26: Arnés de cuerpo entero | J26: EPP
B27: A 004 SF PP | C27: Arnés de cuerpo entero con cuatro puntos de anclaje, Con Argollas recubiertas para evitar la oxidación. | D27: 3 | E27: ANSI/ASSP Z359.11 | F27: 15 | G27: Frontal + lateral | H27: PT | I27: Arnés de cuerpo entero | J27: EPP
B28: A 004 SF PP EC | C28: Arnés de cuerpo entero, espacios confinados, 6 argollas en forma de "X", herraje con protección a la oxidación | D28: 3 | E28: ANSI/ASSP Z359.11 | F28: 17 | G28: Frontal + lateral + hombros | H28: PT | I28: Arnés de cuerpo entero | J28: EPP
B29: A 005 | C29: Arnés de cuerpo entero con un punto de anclaje | D29: 3 | E29: ANSI/ASSP Z359.11 | F29: 7 | G29: Solo dorsal | H29: PT | I29: Arnés de cuerpo entero | J29: EPP
B30: A 005 D | C30: Arnés de cuerpo entero con un punto de anclaje, Dieléctrico | D30: 3 | E30: ANSI/ASSP Z359.11 | F30: 7 | G30: Solo dorsal | H30: PT | I30: Arnés de cuerpo entero | J30: EPP
B31: A 005 PP | C31: Arnés de cuerpo entero con un punto de anclaje, Con Argollas y hebillas recubiertas para evitar la oxidación. | D31: 3 | E31: ANSI/ASSP Z359.11 | F31: 7 | G31: Solo dorsal | H31: PT | I31: Arnés de cuerpo entero | J31: EPP
B32: A 006 | C32: Arnés de cuerpo entero con tres puntos de anclaje | D32: 3 | E32: ANSI/ASSP Z359.11 | F32: 8 | G32: Lateral | H32: PT | I32: Arnés de cuerpo entero | J32: EPP
B33: A 006 D | C33: Arnés dieléctrico cuerpo entero, doble reglaje, en "H", multipropósito, 3 argollas, certificado. | D33: 3 | E33: ANSI/ASSP Z359.11 | F33: 8 | G33: Lateral | H33: PT | I33: Arnés de cuerpo entero | J33: EPP
B34: A 006 PP | C34: Arnés de cuerpo entero con tres puntos de anclaje, Con Argollas y hebillas recubiertas para evitar la oxidación. | D34: 3 | E34: ANSI/ASSP Z359.11 | F34: 8 | G34: Lateral | H34: PT | I34: Arnés de cuerpo entero | J34: EPP
B35: A 007 | C35: Arnés de cuerpo entero, con dos puntos de anclaje | D35: 3 | E35: ANSI/ASSP Z359.11 | F35: 11 | G35: Frontal | H35: PT | I35: Arnés de cuerpo entero | J35: EPP
B36: A 007 D | C36: Arnés de cuerpo entero, con dos puntos de anclaje | D36: 3 | E36: ANSI/ASSP Z359.11 | F36: 11 | G36: Frontal | H36: PT | I36: Arnés de cuerpo entero | J36: EPP
B37: A 007 PP | C37: Arnés de cuerpo entero, con dos puntos de anclaje, Con Argollas y hebillas recubiertas para evitar la oxidación. | D37: 3 | E37: ANSI/ASSP Z359.11 | F37: 11 | G37: Frontal | H37: PT | I37: Arnés de cuerpo entero | J37: EPP
B38: A 008 | C38: Arnés de cuerpo entero con silla, cuatro (4) puntos de anclaje, silla para desplazamientos por cable, doble reglaje (ajuste en pernera y correas de pecho), multipropósito permite restricción, detención de caídas y trabajo en suspendido, en forma de " | D38: PT | H38: PT | I38: A medida
B39: A 009 | C39: Silla para trabajo en alturas | G39: PT | H39: Accesorio trabajo en alturas
B40: A 012 | C40: Arnés de rescate de cuerpo entero con cinco puntos de anclaje, con silla | D40: 3 | E40: ANSI/ASSP Z359.11 | F40: 19 | G40: Esternal + frontal + lateral | H40: PT | I40: Arnés de cuerpo entero | J40: EPP
B41: A 012 D | C41: Arnés de rescate de cuerpo entero con cinco puntos de anclaje, con silla | D41: 3 | E41: ANSI/ASSP Z359.11 | F41: 19 | G41: Esternal + frontal + lateral | H41: PT | I41: Arnés de cuerpo entero | J41: EPP
B42: A 012 D EC | C42: Arnés de cuerpo entero, espacios confinados, 7 argollas con protección dieléctrica, en forma de "Y", incluye faja de protección lumbar y perneras | D42: 3 | E42: ANSI/ASSP Z359.11 | F42: 20 | G42: Esternal + frontal + lateral + hombros | H42: PT | I42: Arnés de cuerpo entero | J42: EPP
B43: A 012 EC | C43: Arnés de cuerpo entero, espacios confinados, 7 argollas, en forma de "Y", incluye faja de protección lumbar y perneras | D43: 3 | E43: ANSI/ASSP Z359.11 | F43: 19 | G43: Esternal + frontal + lateral | H43: PT | I43: Arnés de cuerpo entero | J43: EPP
B44: A 012 PP | C44: Arnés de rescate de cuerpo entero con cinco puntos de anclaje, con silla, Con Argollas y hebillas recubiertas para evitar la oxidación. | D44: 3 | E44: ANSI/ASSP Z359.11 | F44: 19 | G44: Esternal + frontal + lateral | H44: PT | I44: Arnés de cuerpo entero | J44: EPP
B45: A 012 PP EC | C45: Arnés de cuerpo entero, espacios confinados, 7 argollas en forma de "Y", herraje con protección a la oxidación, incluye faja de protección lumbar y perneras, incluye faja de protección lumbar y perneras | D45: 3 | E45: ANSI/ASSP Z359.11 | F45: 20 | G45: Esternal + frontal + lateral + hombros | H45: PT | I45: Arnés de cuerpo entero | J45: EPP
B46: A 013 | C46: Arnés de cuerpo entero con cinco puntos de anclaje, en forma de H | D46: 3 | E46: ANSI/ASSP Z359.11 | F46: 15 | G46: Frontal + lateral | H46: PT | I46: Arnés de cuerpo entero | J46: EPP
B47: A 013 EC | C47: Arnés de cuerpo entero, espacios confinados, 7 argollas, en forma de "H" | D47: 3 | E47: ANSI/ASSP Z359.11 | F47: 15 | G47: Frontal + lateral | H47: PT | I47: Arnés de cuerpo entero | J47: EPP
B48: A 013 PP | C48: Arnés de cuerpo entero con cinco puntos de anclaje, Con Argollas y hebillas recubiertas para evitar la oxidación. | D48: 3 | E48: ANSI/ASSP Z359.11 | F48: 15 | G48: Frontal + lateral | H48: PT | I48: Arnés de cuerpo entero | J48: EPP
B49: A 013 PP EC | C49: Arnés de cuerpo entero, espacios confinados, 7 argollas con protección a la oxidación, en forma de "H" | D49: 3 | E49: ANSI/ASSP Z359.11 | F49: 17 | G49: Frontal + lateral + hombros | H49: PT | I49: Arnés de cuerpo entero | J49: EPP
B50: AD 204 SF | C50: Arnés de cuerpo entero con cuatro puntos de anclaje | D50: 3 | E50: ANSI/ASSP Z359.11 | F50: 15 | G50: Frontal + lateral | H50: PT | I50: Distribuidor | J50: EPP
B51: AD 204 SF PP | C51: Arnés de cuerpo entero con cuatro puntos de anclaje | D51: 3 | E51: ANSI/ASSP Z359.11 | F51: 15 | G51: Frontal + lateral | H51: PT | I51: Distribuidor | J51: EPP
B52: I 009 | C52: Ascendedor de alumnio, derecho o izquierdo, marca YOKE | H52: Com | I52: Accesorio trabajo en alturas
B53: I 013 25 | C53: mosquetón de 25 kN de resistencia | D53: 2 | E53: ANSI/ASSP Z359.12-2019 | G53: COM | H53: Accesorio trabajo en alturas
B54: I 013 40 | C54: mosquetón de 40 kN de resistencia | D54: 2 | E54: ANSI/ASSP Z359.12-2019 | G54: COM | H54: Accesorio trabajo en alturas
B55: I 013 50 | C55: mosquetón de 50 kN de resistencia | D55: 2 | E55: ANSI/ASSP Z359.12-2019 | G55: COM | H55: Accesorio trabajo en alturas
B56: I 021 | C56: Bloqueador o freno referencia I 021 + extensión en cuerda. | E56: COM | F56: Accesorio trabajo en alturas
B57: I 043 | C57: Polea sencilla en aluminio, roldana de 2", marca YOKE | H57: COM | I57: Accesorio trabajo en alturas
B58: I 046 | C58: Polea doble en aluminio, roldana de 2", marca YOKE | H58: COM | I58: Accesorio trabajo en alturas
B59: O 030 | C59: Tramos de cuerda de 13 mm de diámetro, de diferentes longitudes, ver observaciones | D59: 5 | E59: ANSI/ASSP Z359.15 | F59: 28 | G59: Cuerda con ojal | H59: PT | I59: Cuerdas de alma y funda trenzada | J59: Textiles_C
B60: O 030 10 60 | C60: Tramos de cuerda 13 mm * 10 metros con gancho de 60 mm en una punta. | D60: 5 | E60: ANSI/ASSP Z359.15 | F60: 29 | G60: Cuerda con ojal + gancho | H60: PT | I60: Cuerdas de alma y funda trenzada | J60: Textiles_C
B61: O 030 100 | C61: Tramos de cuerda 13 mm * 100 metros con ojal en una punta. | D61: 5 | E61: ANSI/ASSP Z359.15 | F61: 28 | G61: Cuerda con ojal | H61: PT | I61: Cuerdas de alma y funda trenzada | J61: Textiles_C
B62: O 030 100 60 | C62: Tramos de cuerda 13 mm * 100 metros con gancho de 60 mm en una punta. | D62: 5 | E62: ANSI/ASSP Z359.15 | F62: 29 | G62: Cuerda con ojal + gancho | H62: PT | I62: Cuerdas de alma y funda trenzada | J62: Textiles_C
B63: O 030 15 | C63: Tramos de cuerda 13 mm * 15 metros con ojal en una punta. | D63: 5 | E63: ANSI/ASSP Z359.15 | F63: 28 | G63: Cuerda con ojal | H63: PT | I63: Cuerdas de alma y funda trenzada | J63: Textiles_C
B64: O 030 15 60 | C64: Tramos de cuerda 13 mm * 15 metros con gancho de 60 mm en una punta. | D64: 5 | E64: ANSI/ASSP Z359.15 | F64: 29 | G64: Cuerda con ojal + gancho | H64: PT | I64: Cuerdas de alma y funda trenzada | J64: Textiles_C
B65: O 030 20 | C65: Tramos de cuerda 13 mm * 20 metros con ojal en una punta. | D65: 5 | E65: ANSI/ASSP Z359.15 | F65: 28 | G65: Cuerda con ojal | H65: PT | I65: Cuerdas de alma y funda trenzada | J65: Textiles_C
B66: O 030 20 60 | C66: Tramos de cuerda 13 mm * 20 metros con gancho de 60 mm en una punta. | D66: 5 | E66: ANSI/ASSP Z359.15 | F66: 29 | G66: Cuerda con ojal + gancho | H66: PT | I66: Cuerdas de alma y funda trenzada | J66: Textiles_C
B67: O 030 200 | C67: Tramos de cuerda 13 mm * 200 metros con ojal en una punta. | D67: 5 | E67: ANSI/ASSP Z359.15 | F67: 28 | G67: Cuerda con ojal | H67: PT | I67: Cuerdas de alma y funda trenzada | J67: Textiles_C
B68: O 030 200 60 | C68: Tramos de cuerda 13 mm * 200 metros con gancho de 60 mm en una punta. | D68: 5 | E68: ANSI/ASSP Z359.15 | F68: 29 | G68: Cuerda con ojal + gancho | H68: PT | I68: Cuerdas de alma y funda trenzada | J68: Textiles_C
B69: O 030 30 | C69: Tramos de cuerda 13 mm * 30 metros con ojal en una punta. | D69: 5 | E69: ANSI/ASSP Z359.15 | F69: 28 | G69: Cuerda con ojal | H69: PT | I69: Cuerdas de alma y funda trenzada | J69: Textiles_C
B70: O 030 30 60 | C70: Tramos de cuerda 13 mm * 30 metros con gancho de 60 mm en una punta. | D70: 5 | E70: ANSI/ASSP Z359.15 | F70: 29 | G70: Cuerda con ojal + gancho | H70: PT | I70: Cuerdas de alma y funda trenzada | J70: Textiles_C
B71: O 030 50 | C71: Tramos de cuerda 13 mm * 50 metros con ojal en una punta. | D71: 5 | E71: ANSI/ASSP Z359.15 | F71: 28 | G71: Cuerda con ojal | H71: PT | I71: Cuerdas de alma y funda trenzada | J71: Textiles_C
B72: O 030 50 60 | C72: Tramos de cuerda 13 mm * 50 metros con gancho de 60 mm en una punta. | D72: 5 | E72: ANSI/ASSP Z359.15 | F72: 29 | G72: Cuerda con ojal + gancho | H72: PT | I72: Cuerdas de alma y funda trenzada | J72: Textiles_C
B73: O 031 | C73: Tramos de cuerda 16 mm con ojal en una o dos puntas, con posibilidad de gancho en una o dos puntas. | D73: PT | H73: PT | I73: Cuerdas de alma y funda trenzada
B74: O 033 | C74: Tramos de cuerda 11 mm con ojal en una o dos puntas, con posibilidad de gancho en una o dos puntas. | D74: 5 | E74: ANSI/ASSP Z359.15 | F74: 28 | G74: Cuerda con ojal | H74: PT | I74: Cuerdas de alma y funda trenzada | J74: Textiles_C
B75: O 035 | C75: Cordino en poliamida 100%, en aro cerrado de longitud 80cm | E75: PT | F75: Cuerdas de alma y funda trenzada
B76: O 035 O | C76: Cordino con ojales pre formados en cada extremo de longitud 1m | E76: PT | F76: Cuerdas de alma y funda trenzada
B77: O 041 | C77: Adaptador a pértiga | G77: PT | H77: Accesorio trabajo en alturas
B78: P 011 | C78: Eslinga en banda | H78: PT | I78: Eslinga sin absorbedor | J78: EPP
B79: P 012 60 AC | C79: Eslinga sin absorbedor | D79: 1 | E79: ANSI/ASSP Z359.3 | F79: 2 | G79: Restricción longitud variable | H79: PT | I79: Eslinga sin absorbedor | J79: EPP
B80: P 012 60 AC AD | C80: Eslinga Graduable en cuerda, con un gancho de 18 mm de abertura y el otro 60 mm en acero | D80: 1 | E80: ANSI/ASSP Z359.3 | F80: 2 | G80: Restricción longitud variable | H80: PT | I80: Eslinga sin absorbedor | J80: EPP
B81: P 012 60 RAC | C81: Eslinga sencilla con absorbedor de impacto, gancho de 60mm abertura en un extremo | D81: 4 | E81: ANSI/ASSP Z359.13 | F81: 23 | G81: Eslinga absorbedor sencilla 6ft | H81: PT | I81: Eslinga con absorbedor | J81: EPP
B82: P 012 60 RAC AD | C82: Eslinga Graduable en cuerda con dos ganchos, uno de 18 mm de abertura en acero y el otro de 60 mm de abertura en acero + reductor de impacto | D82: 4 | E82: ANSI/ASSP Z359.13 | F82: 23 | G82: Eslinga absorbedor sencilla 6ft | H82: PT | I82: Eslinga con absorbedor | J82: EPP
B83: P 012 60 RAC D | C83: Eslinga sencilla con absorbedor de impacto P 031 EN, protección dieléctrica, ganchos de 60 mm de abertura | D83: 8 | E83: UNE EN 355 | F83: 36 | G83: Eslingas con paquete absorbedor de energía | H83: PT | I83: Eslinga con absorbedor | J83: EPP
B84: P 012 M | C84: Eslinga en cuerda, conformada ganchos de 18 mm en cada uno de los extremos | D84: 1 | E84: ANSI/ASSP Z359.3 | F84: 1 | G84: Eslingas de posicionamiento y/o restricción | H84: PT | I84: Eslinga sin absorbedor | J84: EPP
B85: P 012 M AD | C85: Eslinga o cabo de amarre sencilla en Cuerda con ganchos de doble seguro automático así: 2 Gancho de 18 mm Longitud ajustable , utilizada para: Posicionamiento, Restricción, | D85: 1 | E85: ANSI/ASSP Z359.3 | F85: 6 | G85: Restricción y posicionamiento longitud variable | H85: PT | I85: Eslinga sin absorbedor | J85: EPP
B86: P 012 M D | C86: Eslinga de posicionamiento en cuerda, con ganchos dieléctricos apertura 18 mm | D86: 1 | E86: ANSI/ASSP Z359.3 | F86: 1 | G86: Eslingas de posicionamiento y/o restricción | H86: PT | I86: Eslinga sin absorbedor | J86: EPP
B87: P 012 R | C87: Eslinga o cabo de amarre sencilla en Reata con ganchos de doble seguro automático así: 2 Gancho de 18 mm , utilizada para: Posicionamiento, Restricción, | D87: 1 | E87: ANSI/ASSP Z359.3 | F87: 1 | G87: Eslingas de posicionamiento y/o restricción | H87: PT | I87: Eslinga sin absorbedor | J87: EPP
B88: P 012 R110 | C88: Eslinga sencilla con absorbedor de impacto P031 EN, ganchos de 110 mm de abertura | D88: 8 | E88: UNE EN 355 | F88: 36 | G88: Eslingas con paquete absorbedor de energía | H88: PT | I88: Eslinga con absorbedor | J88: EPP
B89: P 012 RU + | C89: Eslinga en cuerda p reata, con un gancho en un extremo y el otro extremo un ojal + reductor de impacto P 031 MAS | D89: 4 | E89: ANSI/ASSP Z359.13 | F89: 23 | G89: Eslinga absorbedor sencilla 6ft | H89: PT | I89: Eslinga con absorbedor | J89: EPP
B90: P 012 RU AD | C90: Eslinga Graduable en cuerda, con un gancho en un extremo y el otro extremo un ojal + reductor de impacto | D90: 4 | E90: ANSI/ASSP Z359.13 | F90: 23 | G90: Eslinga absorbedor sencilla 6ft | H90: PT | I90: Eslinga con absorbedor | J90: EPP
B91: P 012 RU C | C91: Eslinga en cuerda, con un gancho en un extremo y el otro extremo un ojal + reductor de impacto | D91: 4 | E91: ANSI/ASSP Z359.13 | F91: 23 | G91: Eslinga absorbedor sencilla 6ft | H91: PT | I91: Eslinga con absorbedor | J91: EPP
B92: P 012 RU D | C92: Eslinga sencilla con absorbedor de impacto, protección dieléctrica, ganchos de 18 mm de abertura | D92: 4 | E92: ANSI/ASSP Z359.13 | F92: 23 | G92: Eslinga absorbedor sencilla 6ft | H92: PT | I92: Eslinga con absorbedor | J92: EPP
B93: P 012 RU D + | C93: Eslinga sencilla con absorbedor de impacto P 031 D MAS, protección dieléctrica, ganchos de 18 mm de abertura. | D93: 4 | E93: ANSI/ASSP Z359.13 | F93: 24 | G93: Eslinga absorbedor sencilla 12ft | H93: PT | I93: Eslinga con absorbedor | J93: EPP
B94: P 012 RU R | C94: Eslinga en reata, con un gancho en un extremo y el otro extremo un ojal + reductor de impacto | D94: 4 | E94: ANSI/ASSP Z359.13 | F94: 23 | G94: Eslinga absorbedor sencilla 6ft | H94: PT | I94: Eslinga con absorbedor | J94: EPP
B95: P 014 | C95: Eslinga sin fin longitud 1m | G95: PT | H95: Conector de anclaje
B96: P 014 120 | C96: Eslinga sin fin, reata tubular de 25mm de ancho, longitud 120cm | E96: PT | F96: Conector de anclaje
B97: P 014 150 | C97: Eslinga sin fin, reata tubular de 25mm de ancho, longitud 150cm | E97: PT | F97: Conector de anclaje
B98: P 014 60 | C98: Eslinga sin fin, reata tubular de 25mm de ancho, longitud 60cm | E98: PT | F98: Conector de anclaje
B99: P 021 18 | C99: Eslinga o cabo de amarre doble en Reata con ganchos de doble seguro automático así: 3 Gancho de 18 mm , utilizada para: Restricción, Desplazamiento, | D99: 1 | E99: ANSI/ASSP Z359.3 | F99: 1 | G99: Eslingas de posicionamiento y/o restricción | H99: PT | I99: Eslinga sin absorbedor | J99: EPP
B100: P 021 AC | C100: Doble línea de vida, eslinga en forma de Y, conformada por: reata , tres ganchos de de 18 mm y dos para anclaje en los extremos de 60 mm | D100: 1 | E100: ANSI/ASSP Z359.3 | F100: 1 | G100: Eslingas de posicionamiento y/o restricción | H100: PT | I100: Eslinga sin absorbedor | J100: EPP
B101: P 021 R18 | C101: Doble línea de vida, eslinga en forma de Y + reductor de impacto | D101: 1 | E101: ANSI/ASSP Z359.13 | F101: 23 | G101: Eslinga absorbedor sencilla 6ft | H101: PT | I101: Eslinga con absorbedor | J101: EPP
B102: P 021 RAC | C102: Doble línea de vida, eslinga en forma de Y, conformada por: reata de poliamida 100%, tres mosquetones uno de 18 mm de abertura en acero(conexión al Arnés) y dos para anclaje en los extremos de 60 mm de abertura en acero + reductor de impacto | D102: 4 | E102: ANSI/ASSP Z359.13 | F102: 25 | G102: Eslinga con absorbedor doble 6ft | H102: PT | I102: Eslinga con absorbedor | J102: EPP
B103: P 021 RAC D | C103: Eslinga doble ("Y") en reata con absorbedor de impacto P 031 EN, ganchos de 60 mm de abertura en cada extremo, con protección dieléctrica. | D103: 8 | E103: UNE EN 355 | F103: 36 | G103: Eslingas con paquete absorbedor de energía | H103: PT | I103: Eslinga con absorbedor | J103: EPP
B104: P 022 18 | C104: Doble línea de vida, eslinga en forma de Y, conformada por: cuerda de poliamida 100%, tres mosquetones de 18 mm de abertura en acero | D104: 1 | E104: ANSI/ASSP Z359.3 | F104: 1 | G104: Eslingas de posicionamiento y/o restricción | H104: PT | I104: Eslinga sin absorbedor | J104: EPP
B105: P 022 18 AD | C105: Doble línea de vida, eslinga Graduable en forma de Y, conformada por: cuerda de poliamida 100%, tres mosquetones de 18 mm de abertura en acero | D105: 1 | E105: ANSI/ASSP Z359.3 | F105: 2 | G105: Restricción longitud variable | H105: PT | I105: Eslinga sin absorbedor | J105: EPP
B106: P 022 AC | C106: Doble línea de vida, eslinga en forma de Y, conformada por: cuerda de poliamida 100%, tres mosquetones uno de 18 mm de abertura en acero (conexión al Arnés) y dos para anclaje en los extremos de 60 mm de abertura en acero | D106: 1 | E106: ANSI/ASSP Z359.3 | F106: 1 | G106: Eslingas de posicionamiento y/o restricción | H106: PT | I106: Eslinga sin absorbedor | J106: EPP
B107: P 022 AC AD | C107: Doble línea de vida, eslinga Graduable en forma de Y, conformada por: cuerda de poliamida 100%, tres mosquetones uno de 18 mm de abertura en acero (conexión al Arnés) y dos para anclaje en los extremos de 60 mm de abertura en acero | D107: 1 | E107: ANSI/ASSP Z359.3 | F107: 2 | G107: Restricción longitud variable | H107: PT | I107: Eslinga sin absorbedor | J107: EPP
B108: P 022 R110 | C108: Doble línea de vida, eslinga en forma de Y, conformada por: cuerda de poliamida 100%, tres mosquetones uno de 18 mm de abertura en acero y dos de 110 mm de abertura + reductor de impacto P 031 EN | D108: 8 | E108: UNE EN 355 | F108: 36 | G108: Eslingas con paquete absorbedor de energía | H108: PT | I108: Eslinga con absorbedor | J108: EPP
B109: P 022 R18 | C109: Doble línea de vida, eslinga en forma de Y, conformada por: cuerda de poliamida 100%, tres mosquetones de 18 mm de abertura en acero + reductor de impacto | D109: 4 | E109: ANSI/ASSP Z359.13 | F109: 25 | G109: Eslinga con absorbedor doble 6ft | H109: PT | I109: Eslinga con absorbedor | J109: EPP
B110: P 022 R18 AD | C110: Doble línea de vida, eslinga en forma de Y de longitud graduable, conformada por: cuerda de poliamida 100%, tres mosquetones de 18 mm de abertura en acero + reductor de impacto | D110: 4 | E110: ANSI/ASSP Z359.13 | F110: 25 | G110: Eslinga con absorbedor doble 6ft | H110: PT | I110: Eslinga con absorbedor | J110: EPP
B111: P 022 R18 D | C111: Eslinga doble ("Y") con absorbedor de impacto, ganchos de 18 mm de abertura en extremo, con protección dieléctrica | D111: 4 | E111: ANSI/ASSP Z359.13 | F111: 25 | G111: Eslinga con absorbedor doble 6ft | H111: PT | I111: Eslinga con absorbedor | J111: EPP
B112: P 022 R18 D + | C112: Eslinga doble ("Y") con absorbedor de impacto P 031 D MAS, ganchos de 18 mm de abertura en extremo, con protección dieléctrica | D112: 4 | E112: ANSI/ASSP Z359.13 | F112: 26 | G112: Eslinga con absorbedor doble 12ft | H112: PT | I112: Eslinga con absorbedor | J112: EPP
B113: P 022 RAC | C113: Doble línea de vida en reata o cuerda con ganchos de 60 mm en acero + reductor de impacto en reata poliamida, acoplados con costura de fabrica | D113: 4 | E113: ANSI/ASSP Z359.13 | F113: 25 | G113: Eslinga con absorbedor doble 6ft | H113: PT | I113: Eslinga con absorbedor | J113: EPP
B114: P 022 RAC + | C114: Doble línea de vida en reata o cuerda con ganchos de 60 mm en acero + reductor de impacto P 031 MAS. | D114: 4 | E114: ANSI/ASSP Z359.13 | F114: 26 | G114: Eslinga con absorbedor doble 12ft | H114: PT | I114: Eslinga con absorbedor | J114: EPP
B115: P 022 RAC AD | C115: Doble línea de vida, Eslinga Graduable en cuerda con ganchos de 60 mm en acero + reductor de impacto en reata poliamida, acoplados con costura de fabrica | D115: 4 | E115: ANSI/ASSP Z359.13 | F115: 25 | G115: Eslinga con absorbedor doble 6ft | H115: PT | I115: Eslinga con absorbedor | J115: EPP
B116: P 022 RAC D | C116: Eslinga desplazamiento con absorbedor, ganchos de dieléctricos de 18 mm y de 60 mm de abertura | D116: 8 | E116: UNE EN 355 | F116: 36 | G116: Eslingas con paquete absorbedor de energía | H116: PT | I116: Eslinga con absorbedor | J116: EPP
B117: P 041 1 | C117: Conector de anclaje, en reata de poliamida 100% , 45 mm de ancho con una argolla en un extremo | D117: 7 | E117: ANSI/ASSP Z359.18 | F117: 34 | G117: Tipo A | H117: PT | I117: Conector de anclaje | J117: EPP
B118: P 041 1 PP | C118: Conector de anclaje, en reata de poliamida 100% , 45 mm de ancho con una argolla recubierta para evitar la oxidación | D118: 7 | E118: ANSI/ASSP Z359.18 | F118: 34 | G118: Tipo A | H118: PT | I118: Conector de anclaje | J118: EPP
B119: P 041 1.5 | C119: Conector de anclaje, en reata de poliamida 100% , 45 mm de ancho con una argolla en un extremo | D119: 7 | E119: ANSI/ASSP Z359.18 | F119: 34 | G119: Tipo A | H119: PT | I119: Conector de anclaje | J119: EPP
B120: P 041 1.5 PP | C120: Conector de anclaje, en reata de poliamida 100% , 45 mm de ancho con una argolla recubierta para evitar la oxidación | D120: 7 | E120: ANSI/ASSP Z359.18 | F120: 34 | G120: Tipo A | H120: PT | I120: Conector de anclaje | J120: EPP
B121: P 041 2 | C121: Conector de anclaje, en reata de poliamida 100% , 45 mm de ancho con una argolla en un extremo | D121: 7 | E121: ANSI/ASSP Z359.18 | F121: 34 | G121: Tipo A | H121: PT | I121: Conector de anclaje | J121: EPP
B122: P 041 2 PP | C122: Conector de anclaje, en reata de poliamida 100% , 45 mm de ancho con una argolla recubierta para evitar la oxidación | D122: 7 | E122: ANSI/ASSP Z359.18 | F122: 34 | G122: Tipo A | H122: PT | I122: Conector de anclaje | J122: EPP
B123: P 041 AD | C123: Conector de anclaje, en reata de poliamida 100% , 45 mm de ancho con una argolla en un extremo, longitud graduable entre 0,5 y 2m | D123: 7 | E123: ANSI/ASSP Z359.18 | F123: 34 | G123: Tipo A | H123: PT | I123: Conector de anclaje | J123: EPP
B124: P 041 D AD | C124: Conector de anclaje, en reata de poliamida 100% , 45 mm de ancho con una argolla con protección dieléctrica, de longitud graduable de 0,5 a 2m | D124: 7 | E124: ANSI/ASSP Z359.18 | F124: 34 | G124: Tipo A | H124: PT | I124: Conector de anclaje | J124: EPP
B125: P 041 D1 | C125: Conector de anclaje, en reata de poliamida 100% , 45 mm de ancho con una argolla dieléctrica en un extremo | D125: 7 | E125: ANSI/ASSP Z359.18 | F125: 34 | G125: Tipo A | H125: PT | I125: Conector de anclaje | J125: EPP
B126: P 041 D1.5 | C126: Conector de anclaje, en reata de poliamida 100% , 45 mm de ancho con una argolla dieléctrica en un extremo, | D126: 7 | E126: ANSI/ASSP Z359.18 | F126: 34 | G126: Tipo A | H126: PT | I126: Conector de anclaje | J126: EPP
B127: P 041 D2 | C127: Conector de anclaje, en reata de poliamida 100% , 45 mm de ancho con una argolla dieléctrica en un extremo, | D127: 7 | E127: ANSI/ASSP Z359.18 | F127: 34 | G127: Tipo A | H127: PT | I127: Conector de anclaje | J127: EPP
B128: P 041 PP AD | C128: Conector de anclaje, en reata de poliamida 100% , 45 mm de ancho con una argolla recubierta para evitar la oxidación, de longitud graduable de 0,5 a 2m | D128: 7 | E128: ANSI/ASSP Z359.18 | F128: 34 | G128: Tipo A | H128: PT | I128: Conector de anclaje | J128: EPP
B129: P 042 1 | C129: Conector de anclaje, en reata de poliamida 100% , 45 mm de ancho con una argolla en cada extremo, longitud entre 0,5m y 1m | D129: 7 | E129: ANSI/ASSP Z359.18 | F129: 34 | G129: Tipo A | H129: PT | I129: Conector de anclaje | J129: EPP
B130: P 042 1.5 | C130: Conector de anclaje, en reata de poliamida 100% , 45 mm de ancho con una argolla en cada extremo, longitud entre 1m y 1,5m | D130: 7 | E130: ANSI/ASSP Z359.18 | F130: 34 | G130: Tipo A | H130: PT | I130: Conector de anclaje | J130: EPP
B131: P 042 2 | C131: Conector de anclaje, en reata de poliamida 100% , 45 mm de ancho con una argolla en cada extremo, longitud entre 1,5m y 2m | D131: 7 | E131: ANSI/ASSP Z359.18 | F131: 34 | G131: Tipo A | H131: PT | I131: Conector de anclaje | J131: EPP
B132: P 043 | C132: Cinta PICK UP, equipo para rescates y posicionamiento, conformado por reata de poliamida 100%, hebilla de friccion segun la necesidad | D132: PT | H132: PT | I132: Conector de anclaje
B133: P 045 | C133: Conector de anclaje de longitud graduable en reata de 45 mm de ancho | D133: 7 | E133: ANSI/ASSP Z359.18 | F133: 34 | G133: Tipo A | H133: PT | I133: Conector de anclaje | J133: EPP
B134: P 046 | C134: Conector de anclaje tipo "TIE OFF o Collarín" , de longitud entre 0,5m a 2m, en cuerda de 11 a 16 mm | D134: 7 | E134: ANSI/ASSP Z359.18 | F134: 34 | G134: Tipo A | H134: PT | I134: Conector de anclaje | J134: EPP
B135: P 046 C | C135: Conector de anclaje tipo "TIE OFF o Collarín" , de longitud entre 0,5m a 2m, en cuerda de 11 a 16 mm, con protector en caucho | D135: 7 | E135: ANSI/ASSP Z359.18 | F135: 34 | G135: Tipo A | H135: PT | I135: Conector de anclaje | J135: EPP
B136: P 052 | C136: ROPE STOP, equipo para posicionamiento y restricción de caídas, conformado por bloqueador sencillo+mosquetón+eslinga P 012 U | D136: 1 | E136: ANSI/ASSP Z359.3 | F136: 6 | G136: Restricción y posicionamiento longitud variable | H136: PT | I136: Eslinga sin absorbedor | J136: EPP
B137: P 053 POL | C137: Par de pretales con cuerda de 13 mm de diámetro | F137: PT | G137: Accesorio trabajo en alturas
B138: P 053 PPL | C138: Par de pretales con cuerda de 16mm de diámetro | F138: PT | G138: Accesorio trabajo en alturas
B139: P 055 | C139: Accesorio para espacios confinados | F139: PT | G139: Accesorio trabajo en alturas
B140: P 060 | C140: Estrobo en cuerda de 13 mm de diámetro, ojal en ambos extremos, por metro | D140: PT | H140: PT | I140: Accesorio trabajo en alturas
B141: P 080 | C141: Kit línea de vida vertical portátil | D141: 5 | E141: ANSI/ASSP Z359.15 | F141: 27 | G141: Línea de vida sistema | H141: PT | I141: A medida | J141: Textiles_C
B142: PC O 005 | C142: Freno para guaya de 8mm de diametro, en acero inoxidable | H142: COM | I142: Accesorio trabajo en alturas
B143: PC O 006 | C143: Freno para guaya de 10mm de diametro, en acero inoxidable | H143: COM | I143: Accesorio trabajo en alturas
B144: PD 222 AC | C144: Doble línea de vida, eslinga en forma de Y, conformada por: cuerda de poliamida 100%, tres mosquetones uno de 18 mm de abertura en acero (conexión al Arnés) y dos para anclaje en los extremos de 60 mm de abertura en acero | D144: 1 | E144: ANSI/ASSP Z359.3 | F144: 1 | G144: Eslingas de posicionamiento y/o restricción | H144: PT | I144: Distribuidor | J144: EPP
B145: PD 222 RAC | C145: Doble línea de vida en reata o cuerda con ganchos de 60 mm en acero + reductor de impacto en reata poliamida, acoplados con costura de fabrica | D145: 4 | E145: ANSI/ASSP Z359.13 | F145: 25 | G145: Eslinga con absorbedor doble 6ft | H145: PT | I145: Distribuidor | J145: EPP
